[Event "*** Titled Tuesday Blitz"]
[Site "Chess.com"]
[Date "2021.02.09"]
[Round "11"]
[White "Dahamdi_Sanudula"]
[Black "canary2016"]
[Result "1-0"]
[WhiteElo "1799"]
[BlackElo "1973"]
[TimeControl "180+1"]
[EndTime "12:08:31 PST"]
[Termination "Dahamdi_Sanudula won by checkmate"]

1. d4 {[%clk 0:03:00.9]} 1... d5 {[%clk 0:02:59.5]} 2. e3 {[%clk 0:03:01.1]}
2... Nf6 {[%clk 0:02:57.1]} 3. Bd3 {[%clk 0:03:01]} 3... c6 {[%clk 0:02:56.8]}
4. f4 {[%clk 0:03:00.6]} 4... Bg4 {[%clk 0:02:55.3]} 5. Nf3 {[%clk 0:03:00.8]}
5... e6 {[%clk 0:02:54.5]} 6. O-O {[%clk 0:03:00.5]} 6... Nbd7 {[%clk
0:02:53.1]} 7. Nbd2 {[%clk 0:03:00.2]} 7... Bd6 {[%clk 0:02:51.8]} 8. c3 {[%clk
0:02:59.3]} 8... O-O {[%clk 0:02:51.2]} 9. Qe1 {[%clk 0:02:59]} 9... Bxf3 {[%clk
0:02:50.9]} 10. Nxf3 {[%clk 0:02:58.9]} 10... c5 {[%clk 0:02:51.1]} 11. Ne5
{[%clk 0:02:58.8]} 11... Rc8 {[%clk 0:02:49.3]} 12. Rf3 {[%clk 0:02:58.4]} 12...
a6 {[%clk 0:02:34.6]} 13. Rh3 {[%clk 0:02:57.7]} 13... b5 {[%clk 0:02:32.5]} 14.
Qe2 {[%clk 0:02:56.8]} 14... h6 {[%clk 0:02:30.4]} 15. g4 {[%clk 0:02:50.5]}
15... c4 {[%clk 0:02:20.4]} 16. Bc2 {[%clk 0:02:50]} 16... b4 {[%clk 0:02:18.7]}
17. g5 {[%clk 0:02:48.9]} 17... hxg5 {[%clk 0:01:04.9]} 18. fxg5 {[%clk
0:02:46.4]} 18... Bxe5 {[%clk 0:00:59.1]} 19. gxf6 {[%clk 0:02:44.1]} 19... Nxf6
{[%clk 0:00:56.9]} 20. dxe5 {[%clk 0:02:44.3]} 20... Ne4 {[%clk 0:00:47.1]} 21.
Qh5 {[%clk 0:02:35.6]} 21... Qg5+ {[%clk 0:00:45.4]} 22. Qxg5 {[%clk 0:02:32.6]}
22... Nxg5 {[%clk 0:00:45.3]} 23. Rh5 {[%clk 0:02:23.8]} 23... f6 {[%clk
0:00:44.5]} 24. exf6 {[%clk 0:02:20.2]} 24... gxf6 {[%clk 0:00:44]} 25. Kf2
{[%clk 0:01:49.4]} 25... bxc3 {[%clk 0:00:43.6]} 26. bxc3 {[%clk 0:01:49.2]}
26... Rf7 {[%clk 0:00:42.8]} 27. Bd2 {[%clk 0:01:47]} 27... Rg7 {[%clk
0:00:42.8]} 28. Rb1 {[%clk 0:01:41.3]} 28... a5 {[%clk 0:00:39.2]} 29. a4 {[%clk
0:01:38.6]} 29... Rcc7 {[%clk 0:00:34.3]} 30. Rb8+ {[%clk 0:01:27.2]} 30... Kf7
{[%clk 0:00:33]} 31. Rhh8 {[%clk 0:01:25.6]} 31... f5 {[%clk 0:00:19.6]} 32.
Rhf8+ {[%clk 0:01:07.8]} 32... Kg6 {[%clk 0:00:19.6]} 33. h4 {[%clk 0:00:50.5]}
33... Ne4+ {[%clk 0:00:19.4]} 34. Bxe4 {[%clk 0:00:49.8]} 34... fxe4 {[%clk
0:00:19.4]} 35. Ra8 {[%clk 0:00:44.9]} 35... Ra7 {[%clk 0:00:19.2]} 36. Rg8
{[%clk 0:00:27.8]} 36... Rxg8 {[%clk 0:00:12.3]} 37. Rxa7 {[%clk 0:00:24.9]}
37... Rf8+ {[%clk 0:00:12.1]} 38. Ke2 {[%clk 0:00:24.7]} 38... Rh8 {[%clk
0:00:10.4]} 39. Be1 {[%clk 0:00:24.8]} 39... Kf5 {[%clk 0:00:10]} 40. Rxa5
{[%clk 0:00:24.5]} 40... Rg8 {[%clk 0:00:10.3]} 41. Ra7 {[%clk 0:00:22.7]} 41...
Rg2+ {[%clk 0:00:10.3]} 42. Bf2 {[%clk 0:00:23]} 42... Rg4 {[%clk 0:00:08.8]}
43. Rf7+ {[%clk 0:00:19.2]} 43... Kg6 {[%clk 0:00:08.4]} 44. Re7 {[%clk
0:00:18.6]} 44... Kf6 {[%clk 0:00:08.6]} 45. Rb7 {[%clk 0:00:18.5]} 45... Rg8
{[%clk 0:00:08.5]} 46. a5 {[%clk 0:00:18.4]} 46... Ra8 {[%clk 0:00:08.5]} 47.
Rb5 {[%clk 0:00:18.4]} 47... Ra6 {[%clk 0:00:08.7]} 48. Bg3 {[%clk 0:00:17.1]}
48... Kf5 {[%clk 0:00:08.5]} 49. Bc7 {[%clk 0:00:16.9]} 49... Rc6 {[%clk
0:00:07.9]} 50. Bb6 {[%clk 0:00:16.6]} 50... Rc8 {[%clk 0:00:07.5]} 51. a6
{[%clk 0:00:16.7]} 51... Kg4 {[%clk 0:00:06.2]} 52. a7 {[%clk 0:00:16.6]} 52...
Kxh4 {[%clk 0:00:05.8]} 53. Bd4 {[%clk 0:00:16.9]} 53... Ra8 {[%clk 0:00:04]}
54. Rb8 {[%clk 0:00:17]} 54... Rxa7 {[%clk 0:00:02.8]} 55. Bxa7 {[%clk
0:00:17.1]} 55... Kg5 {[%clk 0:00:03.7]} 56. Bd4 {[%clk 0:00:17.4]} 56... Kf5
{[%clk 0:00:03.9]} 57. Re8 {[%clk 0:00:18]} 57... Kg4 {[%clk 0:00:01.2]} 58.
Rxe6 {[%clk 0:00:18.1]} 58... Kf5 {[%clk 0:00:02.1]} 59. Re5+ {[%clk 0:00:18.2]}
59... Kg4 {[%clk 0:00:02.5]} 60. Rxd5 {[%clk 0:00:18.7]} 60... Kg3 {[%clk
0:00:03.4]} 61. Rc5 {[%clk 0:00:19.4]} 61... Kg2 {[%clk 0:00:04.3]} 62. Rxc4
{[%clk 0:00:20.1]} 62... Kg1 {[%clk 0:00:05.2]} 63. Rc5 {[%clk 0:00:20.8]} 63...
Kh1 {[%clk 0:00:06.1]} 64. Rf5 {[%clk 0:00:21.2]} 64... Kh2 {[%clk 0:00:07]} 65.
Kf2 {[%clk 0:00:21.4]} 65... Kh1 {[%clk 0:00:07.9]} 66. Rh5# {[%clk 0:00:21.2]}
1-0

[Event "*** Titled Tuesday Blitz"]
[Site "Chess.com"]
[Date "2021.02.09"]
[Round "11"]
[White "kirillshevchenko"]
[Black "Sibelephant"]
[Result "0-1"]
[WhiteElo "2825"]
[BlackElo "3022"]
[TimeControl "180+1"]
[EndTime "12:08:32 PST"]
[Termination "Sibelephant won on time"]

1. e4 {[%clk 0:03:00.9]} 1... d5 {[%clk 0:02:59.4]} 2. exd5 {[%clk 0:03:00.9]}
2... Qxd5 {[%clk 0:03:00.1]} 3. Nc3 {[%clk 0:03:01]} 3... Qd6 {[%clk 0:03:00.6]}
4. Nb5 {[%clk 0:02:59.3]} 4... Qb6 {[%clk 0:02:49.3]} 5. d4 {[%clk 0:02:58.2]}
5... c6 {[%clk 0:02:49]} 6. Na3 {[%clk 0:02:58.5]} 6... Be6 {[%clk 0:02:34.7]}
7. Nf3 {[%clk 0:02:53.9]} 7... Nf6 {[%clk 0:02:32.8]} 8. Bd3 {[%clk 0:02:42.1]}
8... Nbd7 {[%clk 0:01:46.5]} 9. O-O {[%clk 0:02:40.6]} 9... Bg4 {[%clk
0:01:46.4]} 10. Bf4 {[%clk 0:02:18.4]} 10... e6 {[%clk 0:01:33.9]} 11. Nc4
{[%clk 0:02:16.9]} 11... Qd8 {[%clk 0:01:33.8]} 12. h3 {[%clk 0:02:07.3]} 12...
Bh5 {[%clk 0:01:33.3]} 13. Nd6+ {[%clk 0:01:52.5]} 13... Bxd6 {[%clk 0:01:33]}
14. Bxd6 {[%clk 0:01:53.4]} 14... Nb6 {[%clk 0:01:33.5]} 15. Ba3 {[%clk
0:01:46.8]} 15... Qd5 {[%clk 0:01:24.4]} 16. g4 {[%clk 0:01:32.3]} 16... Bg6
{[%clk 0:01:11.4]} 17. Ne5 {[%clk 0:01:05.2]} 17... O-O-O {[%clk 0:00:52.4]} 18.
Bc5 {[%clk 0:00:31.4]} 18... Bxd3 {[%clk 0:00:19.8]} 19. Qxd3 {[%clk 0:00:31.7]}
19... h5 {[%clk 0:00:18.8]} 20. Bxb6 {[%clk 0:00:12.5]} 20... axb6 {[%clk
0:00:16.6]} 21. g5 {[%clk 0:00:10.8]} 21... Ne4 {[%clk 0:00:16.3]} 22. Nxf7
{[%clk 0:00:09.4]} 22... Nxg5 {[%clk 0:00:16.6]} 23. c4 {[%clk 0:00:04.1]} 23...
Qf3 {[%clk 0:00:03.3]} 24. Qxf3 {[%clk 0:00:04.3]} 24... Nxf3+ {[%clk
0:00:04.2]} 25. Kg2 {[%clk 0:00:05.2]} 25... Nh4+ {[%clk 0:00:04]} 26. Kh2
{[%clk 0:00:05.6]} 26... Nf3+ {[%clk 0:00:04.3]} 27. Kg3 {[%clk 0:00:05.6]}
27... Nd2 {[%clk 0:00:04.9]} 28. Rfe1 {[%clk 0:00:04.8]} 28... h4+ {[%clk
0:00:03.2]} 29. Kg2 {[%clk 0:00:04.6]} 29... Nxc4 {[%clk 0:00:03]} 30. Nxh8
{[%clk 0:00:04.9]} 30... Rxh8 {[%clk 0:00:02.8]} 31. Rxe6 {[%clk 0:00:05.5]}
31... Nxb2 {[%clk 0:00:02.3]} 32. Rae1 {[%clk 0:00:05.1]} 32... Rd8 {[%clk
0:00:02]} 33. Re8 {[%clk 0:00:05]} 33... Nd3 {[%clk 0:00:02.5]} 34. Rxd8+ {[%clk
0:00:05.3]} 34... Kxd8 {[%clk 0:00:03.4]} 35. Re4 {[%clk 0:00:05.9]} 35... g5
{[%clk 0:00:03.2]} 36. Rg4 {[%clk 0:00:05.2]} 36... Nf4+ {[%clk 0:00:03.6]} 37.
Kf3 {[%clk 0:00:04]} 37... Nxh3 {[%clk 0:00:03.9]} 38. Ke3 {[%clk 0:00:03.6]}
38... Ke7 {[%clk 0:00:03.9]} 39. d5 {[%clk 0:00:02.7]} 39... cxd5 {[%clk
0:00:03.9]} 40. Rb4 {[%clk 0:00:03.2]} 40... Nf4 {[%clk 0:00:04.1]} 41. Kf3
{[%clk 0:00:03]} 41... h3 {[%clk 0:00:02.7]} 42. Kg3 {[%clk 0:00:03.5]} 42... d4
{[%clk 0:00:03.3]} 43. Rxb6 {[%clk 0:00:02.3]} 43... d3 {[%clk 0:00:04]} 44.
Rxb7+ {[%clk 0:00:02.8]} 44... Kd6 {[%clk 0:00:04.6]} 45. a4 {[%clk 0:00:02.6]}
45... d2 {[%clk 0:00:02.5]} 46. Rb1 {[%clk 0:00:03.1]} 46... Ne2+ {[%clk
0:00:02.9]} 47. Kxh3 {[%clk 0:00:02.5]} 47... Nc1 {[%clk 0:00:03.7]} 48. Rb8
{[%clk 0:00:02.8]} 48... Kc7 {[%clk 0:00:03.3]} 49. Rg8 {[%clk 0:00:02.1]} 49...
d1=Q {[%clk 0:00:03.5]} 50. Rxg5 {[%clk 0:00:03]} 50... Qf3+ {[%clk 0:00:02.9]}
51. Rg3 {[%clk 0:00:03.2]} 51... Qxf2 {[%clk 0:00:03.8]} 52. a5 {[%clk 0:00:02]}
52... Qf5+ {[%clk 0:00:03.3]} 53. Kh2 {[%clk 0:00:01.8]} 53... Qxa5 {[%clk
0:00:04.2]} 54. Rg2 {[%clk 0:00:01.2]} 54... Qe5+ {[%clk 0:00:03.8]} 0-1

[Event "*** Titled Tuesday Blitz"]
[Site "Chess.com"]
[Date "2021.02.09"]
[Round "11"]
[White "sara_khm"]
[Black "Angel_Hranitel_37"]
[Result "1/2-1/2"]
[WhiteElo "2703"]
[BlackElo "2521"]
[TimeControl "180+1"]
[EndTime "12:08:36 PST"]
[Termination "Game drawn by stalemate"]

1. d4 {[%clk 0:03:00.9]} 1... Nf6 {[%clk 0:02:59.9]} 2. c4 {[%clk 0:03:00.9]}
2... g6 {[%clk 0:02:59.8]} 3. g3 {[%clk 0:03:00.4]} 3... Bg7 {[%clk 0:03:00.3]}
4. Bg2 {[%clk 0:02:54.7]} 4... O-O {[%clk 0:03:01.1]} 5. Nc3 {[%clk 0:02:54.6]}
5... d6 {[%clk 0:03:01.8]} 6. Nf3 {[%clk 0:02:54.8]} 6... Nc6 {[%clk 0:03:02.5]}
7. O-O {[%clk 0:02:54.7]} 7... Bf5 {[%clk 0:03:02.2]} 8. d5 {[%clk 0:02:54.2]}
8... Na5 {[%clk 0:02:57.1]} 9. Nh4 {[%clk 0:02:53.1]} 9... Bd7 {[%clk
0:02:57.2]} 10. b3 {[%clk 0:02:52.6]} 10... c5 {[%clk 0:02:48]} 11. Bd2 {[%clk
0:02:33.8]} 11... a6 {[%clk 0:02:46.7]} 12. Rc1 {[%clk 0:02:03.4]} 12... b5
{[%clk 0:02:44.9]} 13. Qe1 {[%clk 0:02:01.9]} 13... bxc4 {[%clk 0:02:42.6]} 14.
Nd1 {[%clk 0:01:59]} 14... c3 {[%clk 0:02:22.5]} 15. Nxc3 {[%clk 0:01:55.4]}
15... Nb7 {[%clk 0:02:23.4]} 16. e4 {[%clk 0:01:52]} 16... Ng4 {[%clk
0:01:53.3]} 17. Qe2 {[%clk 0:01:45.9]} 17... c4 {[%clk 0:01:50.3]} 18. bxc4
{[%clk 0:01:39.6]} 18... Nc5 {[%clk 0:01:50.5]} 19. f4 {[%clk 0:01:27.8]} 19...
Qb6 {[%clk 0:01:26.5]} 20. Kh1 {[%clk 0:01:23]} 20... Qb2 {[%clk 0:00:47.4]} 21.
h3 {[%clk 0:01:21.6]} 21... Nf6 {[%clk 0:00:28.6]} 22. e5 {[%clk 0:01:20.8]}
22... Nh5 {[%clk 0:00:28]} 23. Kh2 {[%clk 0:01:13.2]} 23... dxe5 {[%clk
0:00:27.1]} 24. fxe5 {[%clk 0:01:08]} 24... Bxe5 {[%clk 0:00:27.7]} 25. Qxe5
{[%clk 0:01:07.8]} 25... Qxd2 {[%clk 0:00:28.4]} 26. Qxe7 {[%clk 0:00:58.5]}
26... Qd3 {[%clk 0:00:19.3]} 27. Rf3 {[%clk 0:00:52.7]} 27... Qxc4 {[%clk
0:00:15.6]} 28. Ne2 {[%clk 0:00:43.3]} 28... Qe4 {[%clk 0:00:06.4]} 29. Re3
{[%clk 0:00:30.4]} 29... Qxe7 {[%clk 0:00:06.3]} 30. Rxe7 {[%clk 0:00:30.6]}
30... Rfe8 {[%clk 0:00:06.5]} 31. d6 {[%clk 0:00:22.7]} 31... Rac8 {[%clk
0:00:03.6]} 32. Rxe8+ {[%clk 0:00:16.7]} 32... Bxe8 {[%clk 0:00:02.6]} 33. Nd4
{[%clk 0:00:16.8]} 33... Nf6 {[%clk 0:00:02.7]} 34. Nb3 {[%clk 0:00:16.8]} 34...
Nfd7 {[%clk 0:00:02.7]} 35. Nf3 {[%clk 0:00:16]} 35... Rc6 {[%clk 0:00:02.8]}
36. Ne5 {[%clk 0:00:15]} 36... Rxd6 {[%clk 0:00:03.4]} 37. Rxc5 {[%clk
0:00:12.8]} 37... Nxc5 {[%clk 0:00:03.5]} 38. Nxc5 {[%clk 0:00:13.5]} 38... Kg7
{[%clk 0:00:03]} 39. Ned3 {[%clk 0:00:12.2]} 39... Rd4 {[%clk 0:00:03.1]} 40. a4
{[%clk 0:00:12.5]} 40... Rd8 {[%clk 0:00:03]} 41. Kg1 {[%clk 0:00:13]} 41... Rd4
{[%clk 0:00:03.3]} 42. Kf2 {[%clk 0:00:13.4]} 42... Bxa4 {[%clk 0:00:03.9]} 43.
Ke3 {[%clk 0:00:13.5]} 43... Rc4 {[%clk 0:00:03.9]} 44. Bd5 {[%clk 0:00:12.6]}
44... Rb4 {[%clk 0:00:02.5]} 45. Nxb4 {[%clk 0:00:12.1]} 45... Bb5 {[%clk
0:00:03.3]} 46. Nbxa6 {[%clk 0:00:12.3]} 46... Bf1 {[%clk 0:00:02.9]} 47. Nb4
{[%clk 0:00:11.8]} 47... Bxh3 {[%clk 0:00:02.9]} 48. Nc6 {[%clk 0:00:12.4]}
48... h5 {[%clk 0:00:03]} 49. Nd4 {[%clk 0:00:12.6]} 49... g5 {[%clk 0:00:03]}
50. Ne4 {[%clk 0:00:13]} 50... h4 {[%clk 0:00:03.4]} 51. Nxg5 {[%clk 0:00:13.1]}
51... hxg3 {[%clk 0:00:03.5]} 52. Nxh3 {[%clk 0:00:13.5]} 52... g2 {[%clk
0:00:03.6]} 53. Kf2 {[%clk 0:00:13.6]} 53... Kf6 {[%clk 0:00:04.5]} 54. Bxg2
{[%clk 0:00:11.9]} 54... Ke5 {[%clk 0:00:05.4]} 55. Nf3+ {[%clk 0:00:12.4]}
55... Kf6 {[%clk 0:00:05.2]} 56. Nhg5 {[%clk 0:00:12.9]} 56... Kg6 {[%clk
0:00:05.5]} 57. Ne4 {[%clk 0:00:13.2]} 57... f6 {[%clk 0:00:06.4]} 58. Ng3
{[%clk 0:00:14.1]} 58... Kh6 {[%clk 0:00:06]} 59. Bh3 {[%clk 0:00:15]} 59... Kg6
{[%clk 0:00:06.9]} 60. Bf5+ {[%clk 0:00:15.5]} 60... Kh6 {[%clk 0:00:07.4]} 61.
Nh4 {[%clk 0:00:16.4]} 61... Kg7 {[%clk 0:00:08.3]} 62. Kf3 {[%clk 0:00:16.9]}
62... Kh6 {[%clk 0:00:09.2]} 63. Kg4 {[%clk 0:00:17.8]} 63... Kg7 {[%clk
0:00:10.1]} 64. Nh5+ {[%clk 0:00:18.7]} 64... Kh6 {[%clk 0:00:11]} 65. Nf3
{[%clk 0:00:18.8]} 1/2-1/2

[Event "*** Titled Tuesday Blitz"]
[Site "Chess.com"]
[Date "2021.02.09"]
[Round "11"]
[White "Azde"]
[Black "Grandmaster2B"]
[Result "0-1"]
[WhiteElo "2348"]
[BlackElo "2515"]
[TimeControl "180+1"]
[EndTime "12:08:42 PST"]
[Termination "Grandmaster2B won on time"]

1. d4 {[%clk 0:03:00.9]} 1... Nf6 {[%clk 0:02:59.1]} 2. c4 {[%clk 0:03:00.8]}
2... e6 {[%clk 0:02:59.4]} 3. Nf3 {[%clk 0:03:00.1]} 3... Bb4+ {[%clk
0:02:59.9]} 4. Bd2 {[%clk 0:03:00.5]} 4... a5 {[%clk 0:02:59.9]} 5. g3 {[%clk
0:03:00.1]} 5... d6 {[%clk 0:03:00.3]} 6. Bg2 {[%clk 0:03:00.3]} 6... Nbd7
{[%clk 0:03:00.9]} 7. O-O {[%clk 0:03:00.5]} 7... e5 {[%clk 0:03:01.4]} 8. Be3
{[%clk 0:02:57.8]} 8... exd4 {[%clk 0:03:00]} 9. Nxd4 {[%clk 0:02:58]} 9... O-O
{[%clk 0:03:00.6]} 10. Qc2 {[%clk 0:02:54.1]} 10... Re8 {[%clk 0:02:59.7]} 11.
Bg5 {[%clk 0:02:52.2]} 11... h6 {[%clk 0:02:59.1]} 12. Bc1 {[%clk 0:02:45]}
12... a4 {[%clk 0:02:40.5]} 13. Nc3 {[%clk 0:02:41.7]} 13... Nb6 {[%clk
0:02:40.4]} 14. Nd5 {[%clk 0:02:34.2]} 14... Bc5 {[%clk 0:02:36.9]} 15. Rd1
{[%clk 0:02:31.1]} 15... c6 {[%clk 0:02:32.8]} 16. Ne3 {[%clk 0:02:20.5]} 16...
Qc7 {[%clk 0:02:01.1]} 17. Rb1 {[%clk 0:02:18.9]} 17... Bxd4 {[%clk 0:01:55.1]}
18. Rxd4 {[%clk 0:02:18.3]} 18... Be6 {[%clk 0:01:55.8]} 19. b3 {[%clk
0:02:00.5]} 19... axb3 {[%clk 0:01:51.2]} 20. axb3 {[%clk 0:02:01.4]} 20... Rac8
{[%clk 0:01:42.3]} 21. Bb2 {[%clk 0:01:57.7]} 21... d5 {[%clk 0:01:41.8]} 22. c5
{[%clk 0:01:57.2]} 22... Nbd7 {[%clk 0:01:40.8]} 23. b4 {[%clk 0:01:51.7]} 23...
b6 {[%clk 0:01:37.8]} 24. Rf4 {[%clk 0:01:29.7]} 24... bxc5 {[%clk 0:01:19.4]}
25. bxc5 {[%clk 0:01:30.6]} 25... Rb8 {[%clk 0:00:59.4]} 26. Bxf6 {[%clk
0:01:08.2]} 26... Nxf6 {[%clk 0:00:58.4]} 27. Rfb4 {[%clk 0:01:08]} 27... Nd7
{[%clk 0:00:57.8]} 28. Bf3 {[%clk 0:00:54]} 28... Rxb4 {[%clk 0:00:51.4]} 29.
Rxb4 {[%clk 0:00:53.4]} 29... Qa7 {[%clk 0:00:52.1]} 30. Rb3 {[%clk 0:00:49.1]}
30... Rb8 {[%clk 0:00:39.9]} 31. Rxb8+ {[%clk 0:00:48.5]} 31... Qxb8 {[%clk
0:00:40]} 32. Bg4 {[%clk 0:00:20.5]} 32... Bxg4 {[%clk 0:00:32.7]} 33. Nxg4
{[%clk 0:00:21.4]} 33... Qf8 {[%clk 0:00:26.3]} 34. Qf5 {[%clk 0:00:19.2]} 34...
Nxc5 {[%clk 0:00:23.9]} 35. h4 {[%clk 0:00:18.7]} 35... Ne4 {[%clk 0:00:19.8]}
36. h5 {[%clk 0:00:18.3]} 36... Qe8 {[%clk 0:00:18.1]} 37. Kg2 {[%clk
0:00:17.6]} 37... Qe6 {[%clk 0:00:16.2]} 38. Qf4 {[%clk 0:00:17.6]} 38... c5
{[%clk 0:00:16.3]} 39. f3 {[%clk 0:00:13.6]} 39... Nd6 {[%clk 0:00:12.6]} 40.
Qd2 {[%clk 0:00:12.9]} 40... Nc4 {[%clk 0:00:12.6]} 41. Qd3 {[%clk 0:00:12.3]}
41... Ne5 {[%clk 0:00:12.8]} 42. Nxe5 {[%clk 0:00:11.2]} 42... Qxe5 {[%clk
0:00:13.7]} 43. Qb5 {[%clk 0:00:11.2]} 43... c4 {[%clk 0:00:11.2]} 44. Kf2
{[%clk 0:00:11.3]} 44... Qd4+ {[%clk 0:00:11.4]} 45. Kf1 {[%clk 0:00:11]} 45...
Qd1+ {[%clk 0:00:10.5]} 46. Kf2 {[%clk 0:00:11.1]} 46... Qd4+ {[%clk 0:00:11.1]}
47. Kf1 {[%clk 0:00:11.3]} 47... c3 {[%clk 0:00:11.5]} 48. Qe8+ {[%clk
0:00:10.4]} 48... Kh7 {[%clk 0:00:11.8]} 49. Qc8 {[%clk 0:00:10.9]} 49... Qf6
{[%clk 0:00:05.2]} 50. g4 {[%clk 0:00:09.7]} 50... d4 {[%clk 0:00:05.2]} 51. Qc4
{[%clk 0:00:08.8]} 51... g6 {[%clk 0:00:01.8]} 52. hxg6+ {[%clk 0:00:08.3]}
52... Kxg6 {[%clk 0:00:02.7]} 53. Kg2 {[%clk 0:00:08.6]} 53... Qe5 {[%clk
0:00:01.8]} 54. Qd3+ {[%clk 0:00:08.4]} 54... f5 {[%clk 0:00:02.1]} 55. gxf5+
{[%clk 0:00:06]} 55... Kg5 {[%clk 0:00:02.7]} 56. e4 {[%clk 0:00:05.3]} 56...
dxe3 {[%clk 0:00:02.4]} 57. f6 {[%clk 0:00:05.1]} 57... Kxf6 {[%clk 0:00:01.7]}
58. f4 {[%clk 0:00:04.1]} 58... Qxf4 {[%clk 0:00:01.2]} 59. Qxc3+ {[%clk
0:00:04.6]} 59... Qe5 {[%clk 0:00:01.6]} 60. Qd3 {[%clk 0:00:04.2]} 60... Qg5+
{[%clk 0:00:01.7]} 61. Kf1 {[%clk 0:00:04.4]} 61... Qf5+ {[%clk 0:00:01.7]} 62.
Ke2 {[%clk 0:00:03.6]} 62... Qxd3+ {[%clk 0:00:02]} 63. Ke1 {[%clk 0:00:03]}
63... Qd2+ {[%clk 0:00:02.1]} 0-1

[Event "*** Titled Tuesday Blitz"]
[Site "Chess.com"]
[Date "2021.02.09"]
[Round "11"]
[White "Volodar_Murzin"]
[Black "Zhigalko_Sergei"]
[Result "0-1"]
[WhiteElo "2648"]
[BlackElo "2893"]
[TimeControl "180+1"]
[EndTime "12:08:45 PST"]
[Termination "Zhigalko_Sergei won on time"]

1. e4 {[%clk 0:03:00.9]} 1... c5 {[%clk 0:03:00.1]} 2. Nf3 {[%clk 0:03:00.4]}
2... Nc6 {[%clk 0:03:00.4]} 3. Bb5 {[%clk 0:02:59.4]} 3... Nf6 {[%clk
0:03:00.5]} 4. Bxc6 {[%clk 0:02:57.3]} 4... dxc6 {[%clk 0:03:00.8]} 5. d3 {[%clk
0:02:56.2]} 5... Bg4 {[%clk 0:03:00.9]} 6. Nbd2 {[%clk 0:02:53.2]} 6... Nd7
{[%clk 0:02:55.9]} 7. h3 {[%clk 0:02:51.3]} 7... Bh5 {[%clk 0:02:56]} 8. O-O
{[%clk 0:02:50.7]} 8... e5 {[%clk 0:02:48.4]} 9. a4 {[%clk 0:02:47.2]} 9... Bd6
{[%clk 0:02:47.8]} 10. Nc4 {[%clk 0:02:46.2]} 10... Bc7 {[%clk 0:02:47]} 11. Be3
{[%clk 0:02:43.3]} 11... Qe7 {[%clk 0:02:42.3]} 12. a5 {[%clk 0:02:35.9]} 12...
f6 {[%clk 0:02:35.1]} 13. g4 {[%clk 0:02:23.9]} 13... Bf7 {[%clk 0:02:34.6]} 14.
Nh4 {[%clk 0:02:23.6]} 14... g6 {[%clk 0:02:34.6]} 15. Ng2 {[%clk 0:02:17.8]}
15... h5 {[%clk 0:02:23.5]} 16. b3 {[%clk 0:02:11.3]} 16... O-O-O {[%clk
0:02:09.1]} 17. f4 {[%clk 0:02:01.1]} 17... hxg4 {[%clk 0:02:08.1]} 18. hxg4
{[%clk 0:01:59.2]} 18... Bxc4 {[%clk 0:01:46]} 19. bxc4 {[%clk 0:01:54.6]} 19...
exf4 {[%clk 0:01:46.4]} 20. Bxf4 {[%clk 0:01:49]} 20... Ne5 {[%clk 0:01:11.4]}
21. Kf2 {[%clk 0:01:31.3]} 21... Nxc4 {[%clk 0:00:54]} 22. Rh1 {[%clk
0:01:25.5]} 22... Ne5 {[%clk 0:00:42.5]} 23. a6 {[%clk 0:01:10.7]} 23... b6
{[%clk 0:00:40.7]} 24. Qe2 {[%clk 0:01:09.8]} 24... Qe6 {[%clk 0:00:37.5]} 25.
Bxe5 {[%clk 0:00:46.4]} 25... Bxe5 {[%clk 0:00:37.2]} 26. Raf1 {[%clk
0:00:44.4]} 26... Bd4+ {[%clk 0:00:28.9]} 27. Kf3 {[%clk 0:00:40.3]} 27... Qd6
{[%clk 0:00:19.7]} 28. Nf4 {[%clk 0:00:37.4]} 28... g5 {[%clk 0:00:13.5]} 29.
Nh5 {[%clk 0:00:34]} 29... c4 {[%clk 0:00:13.8]} 30. Ng3 {[%clk 0:00:28.6]}
30... Rxh1 {[%clk 0:00:09.6]} 31. Rxh1 {[%clk 0:00:28.1]} 31... cxd3 {[%clk
0:00:09.8]} 32. cxd3 {[%clk 0:00:27.6]} 32... Be5 {[%clk 0:00:06.9]} 33. Nf5
{[%clk 0:00:24.7]} 33... Qa3 {[%clk 0:00:05.9]} 34. Kg2 {[%clk 0:00:11.8]} 34...
Qxa6 {[%clk 0:00:03.5]} 35. Rh3 {[%clk 0:00:09.1]} 35... Kb8 {[%clk 0:00:03.3]}
36. Qc2 {[%clk 0:00:08.8]} 36... Qb5 {[%clk 0:00:03.1]} 37. Rf3 {[%clk
0:00:05.4]} 37... a5 {[%clk 0:00:03]} 38. Qf2 {[%clk 0:00:03.5]} 38... c5 {[%clk
0:00:02.7]} 39. Ne7 {[%clk 0:00:02.9]} 39... Qd7 {[%clk 0:00:01.5]} 40. Nd5
{[%clk 0:00:02.6]} 40... Bd4 {[%clk 0:00:02.3]} 41. Qg3+ {[%clk 0:00:02.3]}
41... Be5 {[%clk 0:00:03]} 42. Qh3 {[%clk 0:00:02.9]} 42... Qd6 {[%clk 0:00:03]}
43. Qh7 {[%clk 0:00:03.1]} 43... Qd7 {[%clk 0:00:03.5]} 44. Qh6 {[%clk
0:00:03.5]} 44... a4 {[%clk 0:00:03.8]} 45. Kh3 {[%clk 0:00:03.5]} 45... a3
{[%clk 0:00:03.5]} 46. Rf2 {[%clk 0:00:03.7]} 46... Qc6 {[%clk 0:00:02.7]} 47.
Qg7 {[%clk 0:00:03.1]} 47... Qd7 {[%clk 0:00:02.4]} 48. Qh6 {[%clk 0:00:03.5]}
48... Kb7 {[%clk 0:00:02.9]} 49. Ra2 {[%clk 0:00:02.9]} 49... Bb2 {[%clk
0:00:03.1]} 50. Qg6 {[%clk 0:00:02.5]} 50... Qe6 {[%clk 0:00:03]} 51. Qh7+
{[%clk 0:00:02.4]} 51... Rd7 {[%clk 0:00:03.4]} 52. Qh6 {[%clk 0:00:02.6]} 52...
Rxd5 {[%clk 0:00:03.3]} 53. exd5 {[%clk 0:00:01.9]} 53... Qxd5 {[%clk
0:00:03.7]} 54. Qh7+ {[%clk 0:00:01.2]} 54... Kc6 {[%clk 0:00:03.6]} 55. Qe4
{[%clk 0:00:01.4]} 55... Qxe4 {[%clk 0:00:03.5]} 56. dxe4 {[%clk 0:00:02.3]}
56... b5 {[%clk 0:00:04.2]} 57. e5 {[%clk 0:00:02.1]} 57... fxe5 {[%clk
0:00:04.1]} 58. Kg3 {[%clk 0:00:03]} 58... b4 {[%clk 0:00:04.5]} 59. Kf3 {[%clk
0:00:02.8]} 59... b3 {[%clk 0:00:05]} 0-1